fUSD/lending_fUSD_20240717
["ID","MTS","AMOUNT","RATE_DAILY","PERIOD"]
[332475201,1721224238707,-140884.60948281,0.00014,2]
[332475202,1721224238717,-22975.3242926,0.00014054,2]
[332475203,1721224238727,-8536.6841478,0.00014054,2]
[332475204,1721224238736,-2592.62406517,0.00014064,2]
[332475205,1721224238755,-3605.99625915,0.00014064,2]
[332475286,1721224240119,-12934.6,0.00014064,2]
[332475288,1721224240131,-646.40919574,0.00014064,2]
[332475290,1721224240143,-865.66567279,0.00014064,2]
[332475292,1721224240160,-3008.08311096,0.00014064,2]
[332475294,1721224240172,-164239.57735049,0.00014064,2]
[332475296,1721224240181,-278.009399,0.00014247,2]
[332475298,1721224240190,-440.32052,0.0001437,2]
[332475300,1721224240199,-440.32052,0.0001438,2]
[332475302,1721224240209,-178.7,0.00014384,2]
[332475304,1721224240218,-440.32053,0.0001441,2]
[332475306,1721224240229,-440.32052,0.0001445,2]
[332475308,1721224240238,-440.32052,0.0001449,2]
[332475310,1721224240248,-9417.79475312,0.000145,2]
[332475312,1721224240259,-440.32053,0.0001453,2]
[332475314,1721224240269,-506.47171044,0.00014803,2]
[332475316,1721224240278,-454.96,0.00014976,2]
[332475318,1721224240287,-600.0,0.00015,2]
[332475320,1721224240296,-178.7,0.00015068,2]
[332475322,1721224240307,-278.009399,0.00015068,2]
[332475324,1721224240317,-2123.0,0.000151,2]
[332475326,1721224240327,-2109.14711739,0.0001517,2]
[332475348,1721224240603,-311.09957735,0.00015191,2]
[332475349,1721224240613,-374.72,0.00015271,2]
[332475350,1721224240623,-186.30912337,0.0001537,2]
[332475351,1721224240632,-540.0,0.00015567,2]
[332475352,1721224240642,-155.0,0.00015579,2]
[332475353,1721224240652,-199.82,0.00015597,2]
[332475354,1721224240662,-506.47171044,0.00015653,2]
[332475355,1721224240671,-178.7,0.00015753,2]
[332475356,1721224240680,-692.02872611,0.00015832,2]
[332475357,1721224240689,-278.009399,0.0001589,2]
[332475358,1721224240698,-4000.0,0.00016,2]
[332475359,1721224240707,-1000.0,0.000163,2]
[332475361,1721224240716,-2109.14711739,0.00016386,2]
[332475363,1721224240726,-311.09957735,0.00016427,2]
[332475364,1721224240735,-178.7,0.00016438,2]
[332475365,1721224240744,-454.96,0.00016474,2]
[332475366,1721224240753,-506.47171044,0.00016502,2]
[332475367,1721224240762,-278.009399,0.00016712,2]
[332475368,1721224240772,-500.0,0.0001678,2]
[332475369,1721224240781,-500.0,0.0001678,2]
[332475370,1721224240790,-186.30912337,0.0001684,2]
[332475371,1721224240799,-170.54,0.00016886,2]
[332475372,1721224240808,-650.0,0.00017,2]
[332475373,1721224240817,-264.35774578,0.00017088,2]
[332475374,1721224240827,-545.49350331,0.00017159,2]
[332475375,1721224240836,-2498.02656989,0.00017199,2]
[332475376,1721224240845,-196.73956624,0.00017199,2]
[332475377,1721224240854,-155.0,0.00017199,2]
[332475378,1721224240863,-425.35145516,0.00017253,2]
[332475379,1721224240873,-158.81820275,0.00017257,2]
[332475380,1721224240882,-155.0,0.00017259,2]
[332475381,1721224240891,-506.47171044,0.00017352,2]
[332475382,1721224240903,-369.54465039,0.00017533,2]
[332475383,1721224240913,-278.009399,0.00017534,2]
[332475384,1721224240923,-374.72,0.00017535,2]
[332475385,1721224240932,-838.46,0.00017564,2]
[332475386,1721224240941,-2109.14711739,0.00017603,2]
[332475387,1721224240951,-311.09957735,0.00017664,2]
[332475388,1721224240960,-756.53960123,0.00017797,2]
[332475389,1721224240969,-712.0,0.000178,2]
[332475390,1721224240979,-500.0,0.00017876,2]
[332475391,1721224240989,-500.0,0.00017876,2]
[332475392,1721224240998,-366.80013867,0.00017925,2]
[332475393,1721224241008,-454.96,0.00017972,2]
[332475394,1721224241017,-161.68,0.00017972,2]
[332475395,1721224241026,-500.0,0.00018,2]
[332475396,1721224241035,-500.0,0.00018,2]
[332475397,1721224241044,-500.0,0.00018,2]
[332475398,1721224241054,-500.0,0.00018,2]
[332475399,1721224241063,-500.0,0.00018,2]
[332475400,1721224241072,-500.0,0.00018,2]
[332475401,1721224241082,-500.0,0.00018,2]
[332475402,1721224241091,-500.0,0.00018,2]
[332475403,1721224241100,-500.0,0.00018,2]
[332475404,1721224241110,-500.0,0.00018,2]
[332475405,1721224241119,-500.0,0.00018,2]
[332475406,1721224241129,-500.0,0.00018,2]
[332475407,1721224241139,-500.0,0.00018,2]
[332475408,1721224241149,-500.0,0.00018,2]
[332475409,1721224241158,-500.0,0.00018,2]
[332475410,1721224241168,-500.0,0.00018,2]
[332475411,1721224241177,-500.0,0.00018,2]
[332475412,1721224241186,-500.0,0.00018,2]
[332475413,1721224241195,-500.0,0.00018,2]
[332475414,1721224241207,-500.0,0.00018,2]
[332475415,1721224241216,-500.0,0.00018,2]
[332475416,1721224241225,-500.0,0.00018,2]
[332475417,1721224241234,-500.0,0.00018,2]
[332475418,1721224241244,-500.0,0.00018,2]
[332475419,1721224241253,-500.0,0.00018,2]
[332475420,1721224241262,-500.0,0.00018,2]
[332475421,1721224241272,-500.0,0.00018,2]
[332475422,1721224241281,-500.0,0.00018,2]
[332475423,1721224241290,-500.0,0.00018,2]
[332475424,1721224241300,-500.0,0.00018,2]
[332475425,1721224241314,-500.0,0.00018,2]
[332475426,1721224241323,-500.0,0.00018,2]
[332475427,1721224241333,-500.0,0.00018,2]
[332475428,1721224241342,-500.0,0.00018,2]
[332475429,1721224241352,-500.0,0.00018,2]
[332475430,1721224241362,-500.0,0.00018,2]
[332475431,1721224241371,-500.0,0.00018,2]
[332475432,1721224241382,-500.0,0.00018,2]
[332475433,1721224241391,-500.0,0.00018,2]
[332475434,1721224241401,-500.0,0.00018,2]
[332475435,1721224241411,-500.0,0.00018,2]
[332475436,1721224241420,-500.0,0.00018,2]
[332475437,1721224241429,-500.0,0.00018,2]
[332475438,1721224241439,-500.0,0.00018,2]
[332475439,1721224241448,-361.75138661,0.00018,2]
[332475440,1721224241461,-138.24861339,0.00018,2]
[332475441,1721224241471,-256.36726001,0.00018,2]
[332475442,1721224241482,-243.63273999,0.00018,2]
[332475443,1721224241491,-500.0,0.00018,2]
[332475444,1721224241501,-500.0,0.00018,2]
[332475445,1721224241510,-360.83237188,0.00018,2]
[332475446,1721224241526,-139.16762812,0.00018,2]
[332475447,1721224241535,-500.0,0.00018,2]
[332475448,1721224241544,-447.17907853,0.00018,2]
[332475449,1721224241556,-52.82092147,0.00018,2]
[332475450,1721224241566,-500.0,0.00018,2]
[332475452,1721224241575,-500.0,0.00018,2]
[332475453,1721224241584,-500.0,0.00018,2]
[332475455,1721224241593,-28.75064281,0.00018,2]
[332475491,1721224243154,-155.0,0.00013999,2]
[332475493,1721224243165,-1095.0,0.00017919,2]
[332475495,1721224243174,-471.24935719,0.00018,2]
[332475497,1721224243183,-500.0,0.00018,2]
[332475499,1721224243192,-500.0,0.00018,2]
[332475501,1721224243201,-500.0,0.00018,2]
[332475502,1721224243210,-500.0,0.00018,2]
[332475503,1721224243220,-500.0,0.00018,2]
[332475504,1721224243231,-579.21,0.00018,2]
[332475505,1721224243241,-500.0,0.00018,2]
[332475506,1721224243250,-500.0,0.00018,2]
[332475508,1721224243259,-500.0,0.00018,2]
[332475510,1721224243267,-468.76,0.00018,2]
[332475512,1721224243277,-500.0,0.00018,2]
[332475514,1721224243286,-500.0,0.00018,2]
[332475516,1721224243295,-155.17415962,0.0001801,2]
[332475518,1721224243304,-399.0,0.00018082,2]
[332475519,1721224243317,-1661.0,0.000181,2]
[332475520,1721224243326,-361.0,0.000181,2]
[332475521,1721224243336,-1829.0,0.000181,2]
[332475523,1721224243345,-1252.0,0.000181,2]
[332475525,1721224243356,-150.0,0.000181,2]
[332475527,1721224243365,-620.0,0.000181,2]
[332475529,1721224243375,-809.0,0.000181,2]
[332475532,1721224243386,-445.0,0.000181,2]
[332475534,1721224243395,-450.0,0.000181,2]
[332475536,1721224243404,-549.0,0.000181,2]
[332475538,1721224243413,-150.0,0.000181,2]
[332475540,1721224243423,-2380.0,0.000181,2]
[332475542,1721224243432,-3280.0,0.000181,2]
[332475544,1721224243441,-1990.0,0.000181,2]
[332475546,1721224243450,-150.0,0.000181,2]
[332475548,1721224243459,-5817.0,0.000181,2]
[332475549,1721224243468,-1200.0,0.000181,2]
[332475550,1721224243477,-12003.601,0.000181,2]
[332475551,1721224243487,-150.446,0.000181,2]
[332475552,1721224243497,-1072.0,0.000181,2]
[332475553,1721224243506,-506.47171044,0.00018201,2]
[332475554,1721224243515,-151.97548658,0.00018223,2]
[332475555,1721224243525,-186.30912337,0.0001831,2]
[332475556,1721224243534,-278.009399,0.00018356,2]
[332475557,1721224243544,-151.40847592,0.0001842,2]
[332475558,1721224243553,-156.58130858,0.00018432,2]
[332475559,1721224243562,-1600.0,0.000185,6]
[332475560,1721224243571,-150.0,0.00018506,2]
[332475561,1721224243580,-152.64471479,0.00018544,2]
[332475562,1721224243590,-2100.0,0.000186,6]
[332475563,1721224243599,-155.17415962,0.00018652,2]
[332475564,1721224243609,-2700.0,0.000187,6]
[332475565,1721224243618,-199.82,0.00018716,2]
[332475566,1721224243630,-152.64471479,0.00018748,2]
[332475567,1721224243639,-155.57001067,0.00018761,2]
[332475568,1721224243648,-1049.6389227,0.0001878,2]
[332475569,1721224243658,-382.0,0.000188,2]
[332475570,1721224243668,-346195.30098809,0.000188,2]
[332475571,1721224243695,-685.98299835,0.00013954,2]
[332475573,1721224243704,-1423.79700245,0.000188,2]
[332475575,1721224243715,-376071.7545734,0.000188,2]
[332475576,1721224243724,-500.0,0.000188,6]
[332475577,1721224243734,-2109.14711739,0.00018819,2]
[332475578,1721224243744,-500.0,0.00018847,2]
[332475579,1721224243754,-200.0,0.00018847,2]
[332475580,1721224243763,-500.0,0.00018848,2]
[332475581,1721224243773,-500.0,0.00018848,2]
[332475582,1721224243782,-500.0,0.00018848,2]
[332475583,1721224243791,-200.0,0.00018848,2]
[332475584,1721224243802,-308.68,0.00018849,30]
[332475585,1721224243812,-5000.0,0.000189,2]
[332475586,1721224243821,-1000.0,0.000189,2]
[332475587,1721224243831,-500.0,0.000189,6]
[332475588,1721224243840,-311.09957735,0.000189,2]
[332475589,1721224243849,-3270.1000499,0.000189,2]
[332475590,1721224243859,-474.49864856,0.000189,2]
[332475591,1721224243868,-500.0,0.00018905,2]
[332475592,1721224243877,-500.0,0.00018905,2]
[332475593,1721224243887,-500.0,0.00018905,2]
[332475594,1721224243896,-500.0,0.00018905,2]
[332475595,1721224243906,-500.0,0.00018905,2]
[332475596,1721224243915,-371.2888,0.00018905,2]
[332475597,1721224243924,-444.5141,0.00018905,2]
[332475598,1721224243934,-500.0,0.00018905,2]
[332475599,1721224243944,-500.0,0.00018905,2]
[332475600,1721224243954,-500.0,0.00018905,2]
[332475601,1721224243966,-500.0,0.00018905,2]
[332475602,1721224243976,-500.0,0.00018905,2]
[332475603,1721224243985,-500.0,0.00018905,2]
[332475604,1721224243995,-500.0,0.00018905,2]
[332475605,1721224244004,-500.0,0.00018905,2]
[332475606,1721224244014,-500.0,0.00018905,2]
[332475607,1721224244023,-355.8316,0.00018905,2]
[332475608,1721224244033,-151.90694189,0.00018933,2]
[332475609,1721224244042,-152.64471479,0.00018967,2]
[332475610,1721224244052,-500.0,0.00018972,2]
[332475611,1721224244061,-500.0,0.00018972,2]
[332475612,1721224244070,-153.01927579,0.00018972,2]
[332475613,1721224244080,-153.01927579,0.00018983,2]
[332475614,1721224244090,-216.45576739,0.0001899,2]
[332475615,1721224244100,-517.91842238,0.00018999,2]
[332475616,1721224244109,-675266.34705397,0.00019,7]
[332475636,1721224246540,-854.09670586,0.00019,7]
[332475637,1721224247326,-870.66039763,0.00019,7]
[332475638,1721224247382,-18369.70656785,0.00019,7]
[332475639,1721224247400,-6876.2,0.00019,7]
[332475640,1721224247412,-776.31930374,0.00019,7]
[332475641,1721224247423,-922.26269289,0.00019,7]
[332475646,1721224313703,66061.17675917,0.00011199,2]
[332475647,1721224313730,86891.90149062,0.00011199,2]
[332475651,1721224355116,35627.7231892,0.00011199,2]
[332475652,1721224356895,15451.9318012,0.00011199,2]
[332475655,1721224373711,23488.88176521,0.00011199,2]
[332475658,1721224380555,290.83715981,0.00011199,2]
[332475660,1721224401342,207.0074405,0.00011199,2]
[332475663,1721224417169,796.63488233,0.00011199,2]
[332475664,1721224420656,3327.78853586,0.00011199,2]
[332475665,1721224426688,2835.14404974,0.00011199,2]
[332475669,1721224437144,3500.68871565,0.00011199,2]
[332475670,1721224438817,11005.33966224,0.00011199,2]
[332475671,1721224438847,3029.40981677,0.00011199,2]
[332475672,1721224456083,9252.14906276,0.00011199,2]
[332475674,1721224460521,3112.40418631,0.00011199,2]
[332475675,1721224477138,2142.69046508,0.00011199,2]
[332475676,1721224477795,1444.88001929,0.00011199,2]
[332475681,1721224503501,1500.0,0.00011199,2]
[332475682,1721224504117,2378.18929727,0.00011199,2]
[332475687,1721224529895,1809.44819258,0.00011199,2]
[332475690,1721224534553,1121.41583717,0.00011199,2]
[332475693,1721224542313,1266.3458359,0.00011199,2]
[332475697,1721224565931,1254.63523304,0.00011199,2]
[332475704,1721224590457,748.76005696,0.00011199,2]
[332475717,1721224637853,529.36820483,0.00011199,2]
[332475718,1721224638716,587.30286305,0.00011199,2]
[332475720,1721224641008,293.38497172,0.00011199,2]
[332475723,1721224645823,629.70304537,0.00011199,2]
[332475724,1721224647454,425.35145516,0.00011199,2]
[332475725,1721224650243,544.25858144,0.00011199,2]
[332475726,1721224654276,626.23900531,0.00011199,2]
[332475727,1721224654593,155.0,0.00011199,2]
[332475728,1721224655987,155.97702063,0.00011199,2]
[332475730,1721224656323,524.57681731,0.00011199,2]
[332475731,1721224665704,159.62923957,0.00011199,2]
[332475733,1721224670385,155.18426986,0.00011199,2]
[332475735,1721224680606,251.80405807,0.00011199,2]
[332475736,1721224680636,155.10723618,0.00011199,2]
[332475739,1721224685825,156.91527582,0.00011199,2]
[332475740,1721224685987,168.67787272,0.00011199,2]
[332475741,1721224686204,244.95389257,0.00011199,2]
[332475742,1721224689880,250.93308669,0.00011199,2]
[332475743,1721224689917,155.0,0.00011199,2]
[332475744,1721224693947,155.0,0.00011199,2]
[332475745,1721224703260,211.539,0.00011199,2]
[332475746,1721224704549,227.39291056,0.00011199,2]
[332475749,1721224712774,158.66133679,0.00011199,2]
[332475750,1721224714932,155.27013329,0.00011199,2]
[332475752,1721224725665,196.23556189,0.00011199,2]
[332475753,1721224730641,516.9654971,0.00011199,2]
[332475762,1721224828758,369.54465039,0.00011199,2]
[332475763,1721224862950,164.03533166,0.00011199,2]
[332475764,1721224930347,372.72881406,0.00011199,2]
[332475765,1721224943639,617.04418814,0.00011199,2]
[332475767,1721224998987,1221.83381837,0.00011199,2]
[332475770,1721225036917,204.38551304,0.00011199,2]
[332475771,1721225058598,243.2198033,0.00011199,2]
[332475772,1721225069295,2560.45191306,0.00011199,2]
[332475773,1721225070307,3454.49320771,0.00011199,2]
[332475774,1721225071202,960.89206454,0.00011199,2]
[332475775,1721225074530,1368.73674718,0.00011199,2]
[332475776,1721225084488,155.45899596,0.00011199,2]
[332475779,1721225104559,290.94871821,0.00011199,2]
[332475785,1721225145005,155.0,0.00011199,2]
[332475791,1721225184107,329.23044534,0.00011199,2]
[332475792,1721225186070,227.39291056,0.00011199,2]
[332475795,1721225198641,411.93123748,0.00011199,2]
[332475802,1721225265504,425.09503562,0.00011199,2]
[332475813,1721225297696,9252.14906276,0.00011199,2]
[332475818,1721225301914,205.0,0.0001665,30]
[332475826,1721225326638,204.22,0.0001665,30]
[332475836,1721225356654,616.80349574,0.00011199,2]
[332475849,1721225399166,4164.48920189,0.00011199,2]
[332475868,1721225434704,-553.85044682,0.00011979,2]
[332475869,1721225434716,-214.65190418,0.00011979,2]
[332475870,1721225434727,-300.0,0.00012139,2]
[332475871,1721225434740,-921.17515582,0.0001214,2]
[332475872,1721225434752,-710.59577829,0.0001214,2]
[332475873,1721225434763,-482.87677638,0.0001214,2]
[332475874,1721225434784,-861.77218951,0.0001214,2]
[332475875,1721225434794,-162.14215493,0.0001214,2]
[332475876,1721225434804,-300.0,0.00012301,2]
[332475877,1721225434816,-22.87275538,0.00012302,2]
[332475878,1721225434832,-346.67189501,0.00012302,2]
[332475879,1721225434842,-170.24,0.00012721,2]
[332475880,1721225434854,-170.07,0.00012773,2]
[332475881,1721225434864,-155.0,0.00013128,2]
[332475882,1721225434876,-155.0,0.00013128,2]
[332475883,1721225434891,-420.0,0.00013324,2]
[332475884,1721225434902,-227.39291056,0.00013472,2]
[332475885,1721225434914,-300.0,0.000135,2]
[332475886,1721225434923,-299.99,0.00013543,2]
[332475887,1721225434935,-5824.15470598,0.00013574,2]
[332475888,1721225434944,-5824.15470598,0.00013574,2]
[332475889,1721225434954,-162.14215493,0.0001374,2]
[332475890,1721225434964,-272.9328,0.000139,2]
[332475891,1721225434973,-443.87,0.00014031,2]
[332475892,1721225434989,-587.0,0.00014625,2]
[332475893,1721225434999,-499.99,0.00014877,2]
[332475894,1721225435009,-162.14215493,0.00015341,2]
[332475895,1721225435019,-23900.0,0.00015797,2]
[332475896,1721225435029,-250.0,0.00015841,2]
[332475897,1721225435038,-500.0,0.00015857,2]
[332475898,1721225435048,-200.0,0.00015872,2]
[332475899,1721225435059,-2058.16,0.00015893,2]
[332475900,1721225435071,-300.0,0.00015894,2]
[332475901,1721225435081,-452.17,0.00015939,5]
[332475902,1721225435091,-1755.7720924,0.00016,2]
[332475903,1721225435100,-842.78,0.00016002,2]
[332475904,1721225435110,-2209.85,0.0001602,2]
[332475905,1721225435127,-250.0,0.00016037,2]
[332475906,1721225435137,-823.0,0.00016053,2]
[332475907,1721225435155,-289.59,0.00016061,2]
[332475908,1721225435164,-150.0,0.00016083,2]
[332475909,1721225435174,-285.79,0.00016209,2]
[332475910,1721225435184,-222.9,0.00016281,2]
[332475911,1721225435193,-443.87,0.00016295,2]
[332475912,1721225435203,-554.6,0.00016367,2]
[332475913,1721225435213,-2309.73,0.000164,2]
[332475914,1721225435223,-400.0,0.00016651,2]
[332475915,1721225435232,-178.4,0.00016676,2]
[332475916,1721225435242,-500.0,0.0001678,2]
[332475917,1721225435251,-162.14215493,0.00016941,2]
[332475918,1721225435261,-2498.02656989,0.00017,2]
[332475919,1721225435272,-285.79,0.0001702,2]
[332475920,1721225435281,-510.0,0.00017022,2]
[332475922,1721225435291,-450.0,0.0001722,2]
[332475923,1721225435300,-620.0,0.0001722,2]
[332475924,1721225435310,-445.0,0.0001722,2]
[332475925,1721225435322,-809.0,0.0001722,2]
[332475926,1721225435332,-2380.0,0.0001722,2]
[332475927,1721225435341,-549.0,0.0001722,2]
[332475928,1721225435351,-150.0,0.0001722,2]
[332475929,1721225435360,-1990.0,0.0001722,2]
[332475930,1721225435369,-150.0,0.0001722,2]
[332475931,1721225435378,-3280.0,0.0001722,2]
[332475932,1721225435387,-5183.0,0.0001722,2]
[332475933,1721225435396,-38292.0,0.0001722,2]
[332475934,1721225435406,-1666.0,0.0001722,2]
[332475935,1721225435415,-1200.0,0.0001722,2]
[332475936,1721225435425,-5818.0,0.0001722,2]
[332475937,1721225435434,-1072.0,0.0001722,2]
[332475938,1721225435444,-892.0,0.0001762,2]
[332475939,1721225435453,-285.79,0.0001783,2]
[332475940,1721225435463,-500.0,0.00017876,2]
[332475941,1721225435472,-500.97,0.00018,2]
[332475942,1721225435482,-500.0,0.00018,2]
[332475943,1721225435491,-152.6447148,0.00018039,2]
[332475944,1721225435501,-419.77,0.00018055,2]
[332475945,1721225435510,-419.77,0.00018055,2]
[332475946,1721225435520,-419.77,0.00018055,2]
[332475947,1721225435529,-419.77,0.00018055,2]
[332475948,1721225435539,-419.77,0.00018055,2]
[332475949,1721225435548,-418.63,0.00018055,2]
[332475950,1721225435557,-152.38095238,0.00018105,2]
[332475951,1721225435568,-155.11036898,0.00018108,2]
[332475952,1721225435578,-222.9,0.00018316,2]
[332475953,1721225435587,-500.0,0.00018424,2]
[332475954,1721225435597,-154.76412072,0.00018496,2]
[332475955,1721225435606,-150.212,0.000185,2]
[332475956,1721225435616,-150.0,0.000185,2]
[332475957,1721225435626,-162.14215493,0.00018541,2]
[332475958,1721225435636,-1421.57329841,0.00018541,2]
[332475959,1721225435645,-443.87,0.00018559,2]
[332475960,1721225435655,-728.41092271,0.0001858,2]
[332475961,1721225435665,-361.0,0.000186,2]
[332475962,1721225435675,-1661.0,0.000186,2]
[332475963,1721225435684,-1252.0,0.000186,2]
[332475964,1721225435694,-1829.0,0.000186,2]
[332475965,1721225435704,-539.93,0.00018631,3]
[332475966,1721225435713,-285.79,0.00018641,2]
[332475967,1721225435725,-179.96,0.0001868,3]
[332475968,1721225435735,-1000.0,0.0001869,2]
[332475969,1721225435744,-2500.0,0.0001869,2]
[332475970,1721225435754,-166.66666667,0.00018698,2]
[332475971,1721225435764,-400.0,0.00018732,2]
[332475972,1721225435775,-151.97548658,0.00018738,2]
[332475973,1721225435785,-833.6854996,0.00018739,2]
[332475974,1721225435795,-161.43,0.0001878,2]
[332475975,1721225435806,-155.57001067,0.00018781,2]
[332475976,1721225435819,-7500.0,0.0001879,2]
[332475977,1721225435828,-326.31281873,0.0001879,2]
[332475978,1721225435838,-156.0208,0.0001879,2]
[332475979,1721225435848,-39540.3287,0.0001879,2]
[332475980,1721225435858,-26944.65289763,0.0001879,2]
[332475982,1721225436430,-35187.11265191,0.0001879,2]
[332475983,1721225436441,-37868.23445046,0.0001879,2]
[332475984,1721225436451,-709.2503867,0.0001879,3]
[332475985,1721225436460,-499.01741,0.0001881,2]
[332475986,1721225436469,-1757.85703762,0.0001882,2]
[332475987,1721225436479,-202.63259192,0.00018837,2]
[332475988,1721225436488,-500.0,0.00018847,2]
[332475989,1721225436498,-500.0,0.00018848,2]
[332475990,1721225436507,-500.0,0.00018848,2]
[332475991,1721225436517,-500.0,0.00018848,2]
[332475992,1721225436526,-200.0,0.00018848,2]
[332475993,1721225436535,-308.68,0.00018849,30]
[332475994,1721225436545,-28173.1904702,0.0001889,2]
[332475995,1721225436568,-498.6429475,0.0001889,2]
[332475996,1721225436579,-1026.39824093,0.0001889,2]
[332475997,1721225436590,-614.51,0.0001889,2]
[332475998,1721225436602,-3010.94314137,0.0001889,2]
[332475999,1721225436611,-29642.88406447,0.0001889,2]
[332476000,1721225436623,-29717.92766219,0.0001889,2]
[332476001,1721225436634,-8419.81149369,0.0001889,2]
[332476002,1721225436646,-3492.35088058,0.0001889,2]
[332476003,1721225436657,-482.99531256,0.0001889,2]
[332476004,1721225436668,-897.95,0.0001889,2]
[332476005,1721225436680,-638.68830435,0.0001889,2]
[332476006,1721225436691,-12971.06305336,0.0001889,2]
[332476007,1721225436702,-32669.30361808,0.0001889,2]
[332476022,1721225438360,-126067.02561072,0.0001889,2]
[332476023,1721225438369,-4492.5142,0.0001889,2]
[332476024,1721225438379,-419.00943635,0.00018893,2]
[332476025,1721225438388,-171.68592221,0.00018899,2]
[332476026,1721225438398,-225.17073958,0.00018899,2]
[332476027,1721225438407,-158.81820275,0.00018899,2]
[332476028,1721225438416,-171.68592221,0.000189,2]
[332476029,1721225438426,-709.2503867,0.000189,3]
[332476030,1721225438435,-701.5384,0.000189,2]
[332476031,1721225438444,-500.0,0.000189,2]
[332476032,1721225438454,-5000.0,0.000189,2]
[332476033,1721225438463,-713.231984,0.000189,2]
[332476034,1721225438473,-1000.0,0.000189,2]
[332476035,1721225438482,-174.49944535,0.000189,2]
[332476036,1721225438492,-186.30912337,0.000189,2]
[332476037,1721225438501,-171.68592221,0.000189,2]
[332476038,1721225438511,-170.35659824,0.000189,2]
[332476039,1721225438520,-474.49864856,0.000189,2]
[332476040,1721225438530,-500.0,0.00018905,2]
[332476041,1721225438539,-500.0,0.00018905,2]
[332476042,1721225438549,-500.0,0.00018905,2]
[332476043,1721225438558,-500.0,0.00018905,2]
[332476044,1721225438569,-500.0,0.00018905,2]
[332476045,1721225438579,-371.2888,0.00018905,2]
[332476046,1721225438588,-1000.0,0.00018905,2]
[332476047,1721225438597,-1000.0,0.00018905,2]
[332476048,1721225438606,-1000.0,0.00018905,2]
[332476049,1721225438616,-1000.0,0.00018905,2]
[332476050,1721225438625,-1000.0,0.00018905,2]
[332476051,1721225438634,-1000.0,0.00018905,2]
[332476052,1721225438645,-1000.0,0.00018905,2]
[332476053,1721225438654,-1000.0,0.00018905,2]
[332476054,1721225438663,-1000.0,0.00018905,2]
[332476055,1721225438673,-1000.0,0.00018905,2]
[332476056,1721225438683,-1000.0,0.00018905,2]
[332476057,1721225438692,-1000.0,0.00018905,2]
[332476058,1721225438702,-1000.0,0.00018905,2]
[332476059,1721225438711,-1000.0,0.00018905,2]
[332476060,1721225438723,-1000.0,0.00018905,2]
[332476061,1721225438733,-1000.0,0.00018905,2]
[332476062,1721225438743,-1000.0,0.00018905,2]
[332476063,1721225438752,-444.5141,0.00018905,2]
[332476064,1721225438762,-500.0,0.00018905,2]
[332476065,1721225438772,-500.0,0.00018905,2]
[332476066,1721225438782,-500.0,0.00018905,2]
[332476072,1721225438792,-500.0,0.00018905,2]
[332476073,1721225439072,-500.0,0.00018905,2]
[332476074,1721225439081,-500.0,0.00018905,2]
[332476075,1721225439091,-500.0,0.00018905,2]
[332476076,1721225439100,-500.0,0.00018905,2]
[332476077,1721225439110,-500.0,0.00018905,2]
[332476078,1721225439119,-355.8316,0.00018905,2]
[332476079,1721225439129,-266.73419059,0.00018919,2]
[332476080,1721225439139,-276.28471959,0.00018919,2]